Cogmind - Beta 15 @@@ ROGUE MODE // 2025.06.17 @ 21:09:27 Player: Zaros426 Result: Destroyed by H-71 Marshal with Heavy Mass Driver Performance ------------- Evolutions (6) 3000 Regions Visited (13) 2600 Robots Destroyed (124) 620 Value Destroyed (4400) 4400 Prototype IDs (53) 1060 Alien Tech Used (0) 0 Bonus (3679) 3679 TOTAL SCORE: 15359 Bonus ------- High Alert Combat Kills 136 Follower Combat Kills 1312 Registered with UFD 300 Met Optimus in HQ 500 Met Warlord at Base 500 MAIN.C Attacked Warlord 500 Warlord Defense Kills 856 Friendly Fire -425 Cogmind --------- Core Integrity 0/1150 Matter 40/300 Energy 5/500 System Corruption 0% Temperature Cool (4) Movement Hovering (130) Ox1 Location -4/Factory Parts ------- > --- POWER (2) -------- (None) > --- PROPULSION (5) --- Centrium Wheel Centrium Wheel Improved Antigrav System > --- UTILITY (9) ------ Medium Storage Unit Improved Energy Well Advanced Terrain Scan Processor Core Analyzer Graphene Brace Advanced Hacking Suite Improved Corruption Screen > --- WEAPON (3) ------- (None) > --- INVENTORY (10) --- Vortex Chain Reactor Advanced Medium Treads Improved Force Field Advanced System Shield Dynamic Insulation System Amulet of Y3-NDR Peak State ------------ > --- POWER ------------ Antimatter Reactor Reinforced Antimatter Reactor > --- PROPULSION ------- Spiked Medium Treads Armored Medium Treads Heavy Treads > --- UTILITY ---------- High-capacity Storage Unit Core Analyzer Enhanced Scrap Shield Advanced Remote Shield Advanced Hacking Suite Advanced Hacking Suite Advanced Hacking Suite Improved System Shield > --- WEAPON ----------- Vortex Rifle Railgun Compact Linear Accelerator > --- INVENTORY -------- Vortex Chain Reactor Improved Cryofiber Web Energy Well Structural Scanner Advanced Sensor Array Advanced Terrain Scan Processor Seismic Detector Makeshift Transmission Jammer ECM Suite ECM Suite Experimental Cloaking Device Experimental Focal Shield Improved Corruption Screen Improved Corruption Screen Amulet of Y3-NDR Vortex Rifle Railgun CPS Tube [Rating: 121] Favorites ----------- Power Improved Deuterium Engine Engine Improved Deuterium Engine Power Core Neutrino Core Reactor Reinforced Antimatter Reactor Propulsion Light Treads Treads Light Treads Leg Myomer Leg Wheel Wheel Hover Unit Improved Antigrav System Utility High-capacity Storage Unit Device Seismic Detector Storage High-capacity Storage Unit Processor Core Analyzer Hackware Advanced Hacking Suite Protection Tower Shield Weapon Subdweller Machine Gun Energy Gun Subdweller Laser Energy Cannon Long-range Proton Cannon Ballistic Gun Subdweller Machine Gun Ballistic Cannon Compact Linear Accelerator Launcher Rocket Launcher Special Weapon Mining Laser Impact Weapon Power Maul Special Melee Weapon Datajack Build | -11 -10 -10 -10 -7 -7 -5 -5 -5 -5 -4 -4 -4 -4 ------- Run | Yrd Mat Min Sub Rec Scr Fac Upp Upp War Pro Fac Was Fac Slots Evolved 12 | . . . . . . 10 . . . . 2 . . Power 1 | . . . . . . . . . . . 1 . . Propulsion 3 | . . . . . . 2 . . . . 1 . . Utility 7 | . . . . . . 7 . . . . . . . Weapon 1 | . . . . . . 1 . . . . . . . Parts Attached 145 | 6 7 2 21 3 4 40 5 9 16 2 18 3 9 Power 12 | 1 . . 2 1 . 3 . 1 2 . 2 . . Engine 4 | 1 . . 2 1 . . . . . . . . . Core 4 | . . . . . . 3 . 1 . . . . . Reactor 4 | . . . . . . . . . 2 . 2 . . Propulsion 42 | 2 . 1 6 2 2 11 . 3 3 1 4 2 5 Treads 24 | 2 . 1 4 2 . 6 . 2 2 1 2 1 1 Leg 2 | . . . . . . . . . . . 2 . . Wheel 13 | . . . 2 . 2 5 . 1 1 . . . 2 Hover 3 | . . . . . . . . . . . . 1 2 Flight . | . . . . . . . . . . . . . . Utility 56 | 1 4 . 5 . 1 16 2 4 7 1 11 . 4 Device 24 | 1 1 . 2 . 1 7 . 3 5 . 3 . 1 Storage 6 | . 2 . 2 . . . . . . . . . 2 Processor 10 | . . . . . . 3 1 . 1 1 3 . 1 Hackware 6 | . . . . . . 1 . . . . 5 . . Protection 10 | . 1 . 1 . . 5 1 1 1 . . . . Artifact . | . . . . . . . . . . . . . . Weapon 35 | 2 3 1 8 . 1 10 3 1 4 . 1 1 . Energy Gun 7 | . . . 2 . . 1 . 1 1 . 1 1 . Energy Cannon 1 | . . . . . . . 1 . . . . . . Ballistic Gun 17 | 2 2 . 5 . . 4 2 . 2 . . . . Ballistic Cannon 4 | . . . 1 . . 2 . . 1 . . . . Launcher 2 | . . 1 . . . 1 . . . . . . . Special Weapon 2 | . 1 . . . . 1 . . . . . . . Impact Weapon 1 | . . . . . . 1 . . . . . . . Slashing Weapon . | . . . . . . . . . . . . . . Piercing Weapon . | . . . . . . . . . . . . . . Special Melee Weapon 1 | . . . . . 1 . . . . . . . . Unidentified Prototypes 15 | . . . 1 . . . 1 1 9 . 2 . 1 Corrupted Parts 1 | . . . . . . . . . . 1 . . . System Corruption 2 | . . . . . . . . . . 2 . . . Parts Lost 50 | . . . 7 . . 19 . 2 . . 16 3 3 Power 3 | . . . 1 . . 1 . 1 . . . . . Propulsion 19 | . . . 4 . . 7 . . . . 4 2 2 Utility 16 | . . . 1 . . 5 . 1 . . 8 . 1 Weapon 12 | . . . 1 . . 6 . . . . 4 1 . Highest Loss Streak 12 | . . . 2 . . 8 . 1 . . 12 3 2 To Critical Strikes . | . . . . . . . . . . . . . . Average Backups 16 | 1 10 14 14 18 16 17 17 18 19 18 15 3 4 Power . | . . . . . . . . . . 1 1 1 1 Propulsion 1 | . 3 4 1 1 1 2 1 1 . . . . . Utility 8 | . 3 5 6 9 7 6 10 11 14 14 12 2 2 Weapon 4 | . 3 4 4 5 5 5 3 4 2 2 1 . . Tool/Special . | . . . . . . . . . . . . . . Unused Backups 48 | . 3 1 3 1 16 2 5 3 4 2 5 . 3 Power 1 | . . . . . 1 . . . . . . . . Propulsion 4 | . . . . 1 3 . . . . . . . . Utility 28 | . 2 1 . . 8 . 2 3 3 2 4 . 3 Weapon 14 | . 1 . 3 . 4 2 3 . 1 . . . . Tool/Special 1 | . . . . . . . . . . . 1 . . Average Slot Usage (%) 74 | . 99 100 91 56 53 79 92 93 94 91 71 37 51 Engine 6 | . 14 14 12 7 7 1 . . . . . . . Treads 14 | . 28 28 23 11 11 12 1 6 5 17 10 2 7 Wheel 4 | . . . 1 2 2 7 21 15 16 3 . . 5 Device 9 | . 12 12 9 7 3 11 16 22 19 17 5 . 10 Storage 8 | . 13 14 13 7 7 4 5 5 5 5 4 . 2 Processor 3 | . . . . . . 8 11 11 14 17 7 17 15 Protection 5 | . 1 1 3 7 7 9 5 5 5 4 2 . . Ballistic Gun 15 | . 27 26 17 14 13 9 10 17 12 11 5 . . Peak Build Rating 121 | 6 11 10 35 41 42 86 79 86 109 109 121 67 82 Average Rating 45 | 4 9 10 16 39 38 64 69 76 88 100 95 50 71 On Entrance 45 | . 6 10 10 35 40 39 64 71 71 109 107 41 39 Naked Turns . | . . . . . . . . . . . . . . Heaviest Build 137 | 7 32 33 92 97 97 137 111 93 109 109 112 6 15 Greatest Support 138 | 40 40 40 40 42 42 138 46 46 78 125 125 3 32 Greatest Overweight (x) 29 | . . . 4 4 6 4 3 8 6 1 29 1 . Average Overweight (x) 1 | . . . . 3 2 1 1 2 1 . . . . Largest Inventory Capacity 20 | 5 15 15 20 20 20 20 20 20 20 20 20 5 10 Average Capacity 18 | 5 13 15 17 20 20 20 20 20 20 20 18 5 7 Most Carried 20 | 4 15 15 16 20 20 20 20 20 20 20 20 5 7 Average Carried 16 | 1 10 14 14 19 16 17 18 18 19 19 17 4 5 Final Capacity 20 | 5 15 15 20 20 20 20 20 20 20 20 5 5 10 Final Carried 20 | 4 15 15 15 19 20 18 15 20 20 20 4 4 7 Class Distribution -------------------- 28% | Commander-Mutant 24% | Mutant 21% | Scavenger-Mutant 19% | Scavenger-Gunner Dominant Class ---------------- Mutant | -10/Materials Mutant | -10/Mines Mutant | -10/Subcaves Commander-Mutant | -7/Recycling Commander-Mutant | -7/Scraptown Scavenger-Tank | -5/Factory Scavenger-Gunner | -5/Upper Caves Scavenger-Gunner | -5/Upper Caves Scavenger-Gunner | -5/Warlord Scavenger-Gunner | -4/Proximity Caves Wizard-Tank | -4/Factory Scavenger-Mutant | -4/Waste Mutant | -4/Factory Resources | -11 -10 -10 -10 -7 -7 -5 -5 -5 -5 -4 -4 -4 -4 ----------- Run | Yrd Mat Min Sub Rec Scr Fac Upp Upp War Pro Fac Was Fac Matter Collected 5538 | 292 647 180 656 110 92 1426 161 717 531 356 362 . 8 Remotely . | . . . . . . . . . . . . . . Salvage Created 5253 | 129 432 247 543 538 . 1847 88 675 441 155 158 . . Parts 251 | 12 28 22 39 15 . 72 5 35 13 9 1 . . Haulers Intercepted . | . . . . . . . . . . . . . . Recyclers Shooed 8 | . 2 . . 1 . 5 . . . . . . . Parts Field Recycled . | . . . . . . . . . . . . . . Retrieved Matter . | . . . . . . . . . . . . . . Parts Self-Destructed 58 | . . . 8 . . . 1 30 . 19 . . . Prevented 42 | . . . . . . . . 20 . 22 . . . Kills | -11 -10 -10 -10 -7 -7 -5 -5 -5 -5 -4 -4 -4 -4 ------- Run | Yrd Mat Min Sub Rec Scr Fac Upp Upp War Pro Fac Was Fac Combat Hostiles Destroyed 93 | . 11 5 19 1 . 27 1 9 7 7 6 . . Guns 65 | . 11 3 15 1 . 13 1 9 7 3 2 . . Cannons 11 | . . . . . . 4 . . . 4 3 . . AOE 17 | . . 2 4 . . 10 . . . . 1 . . Classes Destroyed 20 | 2 4 1 4 . . 4 . 2 3 . . . . Worker 3 | . 1 . . . . 2 . . . . . . . Builder 3 | . . 2 . . . 1 . . . . . . . Tunneler 2 | 2 . . . . . . . . . . . . . Recycler 16 | 1 1 2 . 6 . 6 . . . . . . . Operator 1 | . . . . . . 1 . . . . . . . Turret 2 | . . . 2 . . . . . . . . . . Watcher 1 | . 1 . . . . . . . . . . . . Swarmer 27 | . 3 5 7 . . 5 . . 1 6 . . . Grunt 31 | . 8 . 1 . . 12 . 5 3 . 2 . . Brawler 1 | . . . . . . . . . 1 . . . . Duelist 1 | . . . . . . . . 1 . . . . . Protector 1 | . . . . . . . . . 1 . . . . Sentry 7 | . . . 1 1 . 3 1 1 . . . . . Demolisher 2 | . . . . . . 2 . . . . . . . Hunter 8 | . . . . . . 3 . 1 . . 4 . . Programmer 5 | . . . . . . 4 . . . 1 . . . Striker 1 | . . . . . . . . . 1 . . . . Artisan 1 | . . . 1 . . . . . . . . . . Subdweller 10 | . . . 10 . . . . . . . . . . Wizard 1 | . . . . . . . . 1 . . . . . Mutant 1 | . . . . . . . . 1 . . . . . Best Kill Streak 16 | 2 3 3 4 3 . 16 1 3 2 4 3 . . Combat Bots Only 13 | . 3 3 4 1 . 13 1 3 2 4 3 . . Max Kills in Single Turn 5 | 1 1 2 1 1 . 5 1 2 2 1 1 . . Gunslinging 1 | . . 1 . . . . . . . . . . . Exploded 5 | . . 2 1 . . 5 . . . . 1 . . Melee . | . . . . . . . . . . . . . . Uniques/NPCs Destroyed . | . . . . . . . . . . . . . . Combat | -11 -10 -10 -10 -7 -7 -5 -5 -5 -5 -4 -4 -4 -4 -------- Run | Yrd Mat Min Sub Rec Scr Fac Upp Upp War Pro Fac Was Fac Hostile Shots Fired 1062 | . 45 5 142 18 . 281 20 31 36 55 387 3 39 Missed 319 | . 13 1 51 9 . 76 3 9 10 13 124 . 10 Hits 743 | . 32 4 91 9 . 205 17 22 26 42 263 3 29 Melee 3 | . . . . . . . . . . . . 3 . Projectile 740 | . 32 4 91 9 . 205 17 22 26 42 263 . 29 Critical Strikes 23 | . . . 5 . . 8 1 . 1 . 7 . 1 Actively Blocked 1 | . . . . . . . . . . . . . 1 Part Disruptions 1 | . . . . . . 1 . . . . . . . Damage Taken 12234 | . 355 34 1422 64 . 3764 348 420 434 486 3954 152 801 Core 1945 | . 49 . 200 . . 398 41 22 27 48 1114 . 46 Absorbed by Shields 570 | . . . . . . . . . 58 336 176 . . Reduced by Siege Mode 34 | . . . . . . . . . . . 34 . . Ignored by Resistances 397 | . . . . . . . . . . 76 321 . . Regen/Repaired (Parts) 200 | . . . . . . . . . 200 . . . . Core Remaining (%) 48 | 100 . . . . . . . . . 46 . . . Volleys Fired 333 | 8 53 8 91 17 . 71 5 23 15 12 30 . . Largest 3 | 2 2 2 2 2 . 3 3 3 3 3 3 . . Hottest 147 | 40 100 46 100 60 . 147 103 103 128 128 138 . . Shots Fired 716 | 16 98 15 140 27 . 177 16 70 43 36 78 . . Gun 571 | 16 90 14 97 27 . 128 16 70 38 24 51 . . Cannon 85 | . . . 2 . . 39 . . 5 12 27 . . Launcher 15 | . . 1 5 . . 9 . . . . . . . Special 45 | . 8 . 36 . . 1 . . . . . . . Kinetic 597 | 16 90 14 80 27 . 155 16 70 42 36 51 . . Thermal 75 | . 8 . 55 . . 12 . . . . . . . Explosive 15 | . . 1 5 . . 9 . . . . . . . Electromagnetic . | . . . . . . . . . . . . . . Entropic 28 | . . . . . . . . . 1 . 27 . . Robot Hit Streak 22 | 2 11 4 22 5 . 15 10 13 11 7 4 . . Robot Miss Streak 6 | 2 6 2 3 2 . 6 1 5 2 4 4 . . Penetration Max 1 | . . . . . . 1 . 1 1 . . . . Secondary Targets 7 | . 2 1 . . . 2 . 1 1 . . . . Max Gunslinging Chain 1 | . 1 1 . . . 1 . 1 1 . . . . Shots Hit Robots 438 | 5 65 11 78 14 2 123 13 36 39 12 40 . . Core Hits 240 | 4 26 11 40 9 . 83 3 23 18 9 13 . 1 Critical Kills 4 | . . . . . . 3 . . 1 . . . . Critical Parts Destroyed 8 | . 1 . . . . 7 . . . . . . . Critical Strikes 21 | . 1 . 1 . . 12 1 . 3 1 2 . . Destroy 14 | . 1 . 1 . . 10 1 . 1 . . . . Blast 7 | . . . . . . 2 . . 2 1 2 . . Melee Attacks 28 | . . . . . 2 11 . . 15 . . . . Impact 11 | . . . . . . 7 . . 4 . . . . Slashing . | . . . . . . . . . . . . . . Piercing . | . . . . . . . . . . . . . . Sneak Attacks 17 | . . . . . 2 4 . . 11 . . . . Combat Hostiles . | . . . . . . . . . . . . . . Follow-up Attacks . | . . . . . . . . . . . . . . Damage Inflicted 12844 | 70 977 199 1700 348 . 5109 372 915 1038 488 1602 . 26 Guns 8329 | 70 977 151 1319 348 . 2456 372 915 823 128 770 . . Cannons 2004 | . . . 33 . . 789 . . 215 360 607 . . Explosions 2485 | . . 48 348 . . 1864 . . . . 225 . . Melee . | . . . . . . . . . . . . . . Ramming 26 | . . . . . . . . . . . . . 26 Kinetic 9300 | 70 977 151 1063 348 . 3063 372 915 1038 488 815 . . Thermal 973 | . . . 289 . . 684 . . . . . . . Explosive 1983 | . . 48 348 . . 1362 . . . . 225 . . Electromagnetic . | . . . . . . . . . . . . . . Impact . | . . . . . . . . . . . . . . Slashing . | . . . . . . . . . . . . . . Piercing . | . . . . . . . . . . . . . . Entropic 562 | . . . . . . . . . . . 562 . . Highest Corruption 4 | . . . . . . 4 4 4 4 3 . . . Average Corruption 3 | . . . . . . 3 4 4 4 2 . . . Corruption Purged . | . . . . . . . . . . . . . . Corruption Blocked 14 | . . . . . . . . . . 8 . 6 . Effects 68 | . . . . . . 6 9 38 1 14 . . . Message Errors 13 | . . . . . . 1 3 6 . 3 . . . Matter Fused 19 | . . . . . . . 2 15 1 1 . . . Heat Flow Errors 9 | . . . . . . 3 1 3 . 2 . . . Energy Discharges 14 | . . . . . . 1 1 8 . 4 . . . Parts Fused 1 | . . . . . . . . . . 1 . . . Data Loss (minor) 6 | . . . . . . . 1 2 . 3 . . . Data Loss (major) 1 | . . . . . . . . 1 . . . . . Misfires 5 | . . . . . . 1 1 3 . . . . . Overload Shots . | . . . . . . . . . . . . . . Overflow Damage 233 | . . . 21 . . 153 . . . 18 41 . . Projectiles 18 | . . . . . . . . . . 18 . . . Explosions 215 | . . . 21 . . 153 . . . . 41 . . Melee . | . . . . . . . . . . . . . . Knockbacks 17 | . . . . . . 5 . . 2 3 7 . . Impact . | . . . . . . . . . . . . . . Kinetic 15 | . . . . . . 5 . . 1 2 7 . . Secondary 2 | . . . . . . . . . 1 1 . . . Self-Inflicted Damage 107 | . . . 26 . . 81 . . . . . . . Shots 4 | . . . 1 . . 3 . . . . . . . Rammed 16 | . . . . . . . . . . . . . 16 Targets Rammed 16 | . . . . . . . . . . . . . 16 Kicked . | . . . . . . . . . . . . . . Crushed . | . . . . . . . . . . . . . . Highest Temperature 436 | . 120 . 5 36 . 190 226 245 72 268 436 . . Average Temperature 68 | . 29 . 3 11 . 54 112 46 16 81 122 . . Received Heat Transfer 2038 | . 156 . 345 18 . 750 54 96 73 43 494 . 9 Effects 7 | . . . . . . . . . . . 7 . . Shutdowns 1 | . . . . . . . . . . . 1 . . Energy Bleed 1 | . . . . . . . . . . . 1 . . Interference 3 | . . . . . . . . . . . 3 . . Short Circuit 1 | . . . . . . . . . . . 1 . . Damage (minor) 1 | . . . . . . . . . . . 1 . . Siege Activations 1 | . . . . . . . . . . . 1 . . Total Turns 19 | . . . . . . . . . . . 19 . . Longest Duration 19 | . . . . . . . . . . . 19 . . Martial Activations . | . . . . . . . . . . . . . . Shielding Activations . | . . . . . . . . . . . . . . Robots Disrupted . | . . . . . . . . . . . . . . Combat Hostiles . | . . . . . . . . . . . . . . Robots Corrupted . | . . . . . . . . . . . . . . Combat Hostiles . | . . . . . . . . . . . . . . Parts Fried . | . . . . . . . . . . . . . . Impact Corruptions . | . . . . . . . . . . . . . . Robots Melted . | . . . . . . . . . . . . . . Combat Hostiles . | . . . . . . . . . . . . . . Parts Melted 3 | . . . . . . . . . 3 . . . . Heat Transferred 859 | . . . 350 . . 509 . . . . . . . Parts Sabotaged . | . . . . . . . . . . . . . . Parts Stolen . | . . . . . . . . . . . . . . Parts Stripped . | . . . . . . . . . . . . . . Power Chain Reactions . | . . . . . . . . . . . . . . Alert | -11 -10 -10 -10 -7 -7 -5 -5 -5 -5 -4 -4 -4 -4 ------- Run | Yrd Mat Min Sub Rec Scr Fac Upp Upp War Pro Fac Was Fac Maximum Alert Level 2 | . . . . . . 2 . . . . . . . Low Security (%) 92 | 100 100 100 . 100 . 46 . . . . 100 100 100 Level 1 2 | . . . . . . 17 . . . . . . . Level 2 4 | . . . . . . 35 . . . . . . . Level 3 . | . . . . . . . . . . . . . . Level 4 . | . . . . . . . . . . . . . . Level 5 . | . . . . . . . . . . . . . . High Security . | . . . . . . . . . . . . . . Max Security . | . . . . . . . . . . . . . . Peak Influence 559 | 10 81 82 . 119 . 559 . . . . 194 41 20 Initial 96 | . . 22 . 25 . . . . . . 96 41 . Average 51 | 1 24 11 . 13 . 246 . . . . 55 21 4 Influence Increases 4369 | 15 423 133 390 341 . 1014 65 546 305 584 523 . 30 Destroy 0b10 Robot/C 2340 | . 220 100 260 120 . 540 20 340 220 400 120 . . Destroy 0b10 Robot/NC 140 | 15 15 20 . 40 . 45 . . 5 . . . . Destroy Leader 282 | . 52 10 20 . . 110 . 20 . 30 40 . . Allied During Kill 298 | . . . 5 15 . 4 . 66 50 154 4 . . Successful Hack 127 | . 40 . . 28 . 36 . . . . 23 . . Select Force Hacks 210 | . 60 . . 120 . 30 . . . . . . . Disable Machine 150 | . . . . . . 75 . . . . 75 . . Destroy Structure 222 | . 6 3 . 3 . 114 . . . . 96 . . Partial Spotted 15 | . . . . 15 . . . . . . . . . Lose Combat Pursuer 585 | . 30 . 105 . . 60 45 120 30 . 165 . 30 Influence Decreases 4369 | 15 365 191 337 394 . 485 458 590 276 551 558 119 30 Entered New Map 636 | . . 36 . 28 . . 196 27 92 121 58 78 . Time Decay 2889 | 15 365 155 277 305 . 285 262 463 124 350 248 20 20 Lost Part 310 | . . . 20 . . 190 . 20 . . 49 21 10 Lost Ally 356 | . . . 40 61 . 10 . 80 60 80 25 . . Purge Threat 178 | . . . . . . . . . . . 178 . . Squads Dispatched 28 | . 5 . . . . 14 . . . . 8 . 1 Investigation 12 | . 4 . . . . 5 . . . . 3 . . Extermination 4 | . . . . . . 3 . . . . 1 . . Reinforcement 8 | . 1 . . . . 5 . . . . 1 . 1 Assault 1 | . . . . . . 1 . . . . . . . Garrison 3 | . . . . . . . . . . . 3 . . Intercept . | . . . . . . . . . . . . . . Searches Triggered . | . . . . . . . . . . . . . . Construction Impeded 2 | . . . . . . 2 . . . . . . . Haulers Reinforced . | . . . . . . . . . . . . . . Active Scanning Responses . | . . . . . . . . . . . . . . Cargo Convoy Interrupts . | . . . . . . . . . . . . . . Stealth | -11 -10 -10 -10 -7 -7 -5 -5 -5 -5 -4 -4 -4 -4 --------- Run | Yrd Mat Min Sub Rec Scr Fac Upp Upp War Pro Fac Was Fac Distress Signals 3 | . 2 . . . . . . . . . 1 . . Communications Jammed 15 | . . . . . . . . . . . 15 . . Distress Signals 15 | . . . . . . . . . . . 15 . . Times Spotted 237 | . 25 3 31 5 . 37 4 24 54 22 24 5 3 Peak Tracking Total 12 | . 3 3 5 5 . 11 6 4 12 6 11 5 5 Tactical Retreats 21 | . 2 . 3 . . 3 1 6 2 . 2 . 2 Traps | -11 -10 -10 -10 -7 -7 -5 -5 -5 -5 -4 -4 -4 -4 ------- Run | Yrd Mat Min Sub Rec Scr Fac Upp Upp War Pro Fac Was Fac Traps Triggered 4 | . 1 . 2 . . . . . . . 1 . . Indirectly . | . . . . . . . . . . . . . . Trap Hack Attempts . | . . . . . . . . . . . . . . Triggered . | . . . . . . . . . . . . . . Disarmed . | . . . . . . . . . . . . . . Reprogrammed . | . . . . . . . . . . . . . . Reused . | . . . . . . . . . . . . . . Traps Extracted . | . . . . . . . . . . . . . . Installed . | . . . . . . . . . . . . . . Triggered . | . . . . . . . . . . . . . . Machines | -11 -10 -10 -10 -7 -7 -5 -5 -5 -5 -4 -4 -4 -4 ---------- Run | Yrd Mat Min Sub Rec Scr Fac Upp Upp War Pro Fac Was Fac Machines Disabled 16 | . . . 4 . . 5 . 1 1 . 5 . . Max in Single Turn 3 | . . . 3 . . 3 . 1 1 . 2 . . Machines Repaired . | . . . . . . . . . . . . . . Machines Dismantled . | . . . . . . . . . . . . . . Machines Sabotaged . | . . . . . . . . . . . . . . Overloaded Fab Kills . | . . . . . . . . . . . . . . Hacking | -11 -10 -10 -10 -7 -7 -5 -5 -5 -5 -4 -4 -4 -4 --------- Run | Yrd Mat Min Sub Rec Scr Fac Upp Upp War Pro Fac Was Fac Machines Accessed 47 | . 9 . 2 11 12 4 1 . 3 . 5 . . Terminals 16 | . 7 . . 5 . 1 . . . . 3 . . Fabricators 1 | . . . . . . . . . . . 1 . . Repair Stations . | . . . . . . . . . . . . . . Recycling Units 8 | . 2 . . 4 . 2 . . . . . . . Scanalyzers 1 | . . . . . . 1 . . . . . . . Garrison Access 1 | . . . . . . . . . . . 1 . . Total Hacks 232 | . 38 . 12 42 77 12 1 . 7 . 43 . . Successful 184 | . 20 . 12 30 77 6 1 . 7 . 31 . . Failed 47 | . 18 . . 12 . 6 . . . . 11 . . Catastrophic 7 | . 1 . . 5 . 1 . . . . . . . Database Lockouts 1 | . . . . . . . . . . . 1 . . Manual 58 | . 27 . . 10 . 7 . . . . 14 . . Terminals 87 | . 34 . . 12 . 4 . . . . 37 . . Fabricators 4 | . . . . . . . . . . . 4 . . Repair Stations . | . . . . . . . . . . . . . . Recycling Units 15 | . 4 . . 6 . 5 . . . . . . . Scanalyzers 3 | . . . . . . 3 . . . . . . . Garrison Access 2 | . . . . . . . . . . . 2 . . Terminal Hacks 161 | . 10 . 12 26 77 2 1 . 7 . 26 . . Record 119 | . . . 11 24 76 . . . 6 . 2 . . Part Schematic 8 | . 4 . . . . . . . . . 4 . . Robot Schematic 1 | . . . . . . . . . . . 1 . . Robot Analysis 1 | . 1 . . . . . . . . . . . . Prototype ID Bank 6 | . 3 . . 1 . . . . . . 2 . . Open Door 2 | . . . . . . . 1 . 1 . . . . Branch Access Points 1 | . . . . . . . . . . . 1 . . Emergency Access Points 2 | . . . . . . . . . . . 2 . . Machine Index 1 | . . . . . . . . . . . 1 . . Terminal Index 2 | . . . . . . 1 . . . . 1 . . Scanalyzer Index 1 | . . . . . . . . . . . 1 . . Unreport Threat 3 | . . . . . . . . . . . 3 . . Locate Traps 3 | . 2 . . . . . . . . . 1 . . Maintenance Status 1 | . . . . . . . . . . . 1 . . Security Status 1 | . . . . . . . . . . . 1 . . Patrol Status 1 | . . . . . . . . . . . 1 . . Investigation Status 1 | . . . . . . . . . . . 1 . . Recall Investigation 1 | . . . . . . 1 . . . . . . . Hauler Manifests 1 | . . . . . . . . . . . 1 . . Registered Components 1 | . . . . . . . . . . . 1 . . Zone Layout 2 | . . . . 1 . . . . . . 1 . . Proto ID Catalog 2 | . . . 1 . 1 . . . . . . . . Fabricator Hacks 2 | . . . . . . . . . . . 2 . . Load Schematic 1 | . . . . . . . . . . . 1 . . Build 1 | . . . . . . . . . . . 1 . . Repair Station Hacks . | . . . . . . . . . . . . . . Recycling Unit Hacks . | . . . . . . . . . . . . . . Scanalyzer 2 | . . . . . . 2 . . . . . . . Insert Component 1 | . . . . . . 1 . . . . . . . Analyze 1 | . . . . . . 1 . . . . . . . Garrison Access Hacks . | . . . . . . . . . . . . . . Unauthorized Hacks 19 | . 10 . . 4 . 2 . . . . 3 . . Terminals 9 | . 8 . . . . . . . . . 1 . . Botnet 2 | . 2 . . . . . . . . . . . . Disrupt 1 | . 1 . . . . . . . . . . . . Operators 1 | . . . . . . . . . . . 1 . . Skim 5 | . 5 . . . . . . . . . . . . Fabricators . | . . . . . . . . . . . . . . Repair Stations . | . . . . . . . . . . . . . . Recycling Units 7 | . 2 . . 4 . 1 . . . . . . . Tunnel 6 | . 2 . . 4 . . . . . . . . . Fedlink 1 | . . . . . . 1 . . . . . . . Scanalyzers 1 | . . . . . . 1 . . . . . . . Extract 1 | . . . . . . 1 . . . . . . . Garrison Access 2 | . . . . . . . . . . . 2 . . Reprogram 1 | . . . . . . . . . . . 1 . . Watchers 1 | . . . . . . . . . . . 1 . . Data Cores Recovered . | . . . . . . . . . . . . . . Used . | . . . . . . . . . . . . . . Hacking Detections 22 | . 8 . . 5 . 4 . . . . 5 . . Full Trace Events 8 | . 1 . . 3 . 2 . . . . 2 . . Feedback Events . | . . . . . . . . . . . . . . Feedback Blocked . | . . . . . . . . . . . . . . Robot Schematics Acquired 1 | . . . . . . . . . . . 1 . . Robots Built . | . . . . . . . . . . . . . . Authchips . | . . . . . . . . . . . . . . Time . | . . . . . . . . . . . . . . Total Robot Build Rating . | . . . . . . . . . . . . . . Part Schematics Acquired 10 | . 4 . . . . 2 . . . . 4 . . Parts Built 2 | . . . . . . . . . . . 2 . . Authchips . | . . . . . . . . . . . . . . Time 53 | . . . . . . . . . . . 53 . . Total Part Build Rating 12 | . . . . . . . . . . . 12 . . Parts Repaired . | . . . . . . . . . . . . . . Time . | . . . . . . . . . . . . . . Parts Recycled . | . . . . . . . . . . . . . . Recycled Matter . | . . . . . . . . . . . . . . Retrieved Matter . | . . . . . . . . . . . . . . Retrieved Components . | . . . . . . . . . . . . . . Parts Scanalyzed 1 | . . . . . . 1 . . . . . . . Part Schematics Acquired 1 | . . . . . . 1 . . . . . . . Parts Damaged . | . . . . . . . . . . . . . . Bothacking | -11 -10 -10 -10 -7 -7 -5 -5 -5 -5 -4 -4 -4 -4 ------------ Run | Yrd Mat Min Sub Rec Scr Fac Upp Upp War Pro Fac Was Fac Used RIF Installer . | . . . . . . . . . . . . . . Robots Hacked 2 | . . . . . 2 . . . . . . . . Non-combat . | . . . . . . . . . . . . . . Combat 2 | . . . . . 2 . . . . . . . . Robot Hacks Applied 2 | . . . . . 2 . . . . . . . . parse_system 2 | . . . . . 2 . . . . . . . . Relay Couplers Released . | . . . . . . . . . . . . . . Fabnet Peak Effective % . | . . . . . . . . . . . . . . Robots Rewired 18 | . . . . 8 . 1 . 2 5 2 . . . Allies Hacked . | . . . . . . . . . . . . . . Hacks Repelled . | . . . . . . . . . . . . . . Allies | -11 -10 -10 -10 -7 -7 -5 -5 -5 -5 -4 -4 -4 -4 -------- Run | Yrd Mat Min Sub Rec Scr Fac Upp Upp War Pro Fac Was Fac Total Allies 43 | . . . 7 8 1 1 . 10 5 9 2 . . Largest Group 8 | . . . 3 6 5 5 . 6 5 8 5 . . Highest-Rated Group 489 | . . . 57 135 144 135 . 377 279 489 241 . . Highest-Rated Ally 81 | . . . 19 34 58 49 . 81 68 81 81 . . Total Orders 10 | . . . . . . . . . 10 . . . . STAY 5 | . . . . . . . . . 5 . . . . FOLLOW 5 | . . . . . . . . . 5 . . . . Ally Attacks 168 | . . . 13 31 . 1 . 35 21 58 9 . . Total Damage 5426 | . . . 236 671 . 45 . 852 1175 2200 247 . . Kills 39 | . . . 3 6 . . . 10 6 14 . . . Allies Corrupted . | . . . . . . . . . . . . . . Allies Melted 2 | . . . . . . . . . 2 . . . . Intel | -11 -10 -10 -10 -7 -7 -5 -5 -5 -5 -4 -4 -4 -4 ------- Run | Yrd Mat Min Sub Rec Scr Fac Upp Upp War Pro Fac Was Fac Active Infowar (turns) 9479 | 28 1733 850 217 . . 991 561 1932 714 2282 141 . 30 Sensors 3992 | . . . . . . 150 561 1932 710 498 111 . 30 Structural 5600 | . . . 205 . . 398 83 1860 695 2241 118 . . Seismic 8367 | 28 1733 850 12 . . 533 406 1755 694 2239 117 . . Machine Analysis 1395 | . . . . . . 990 405 . . . . . . Cloaking 48 | . . . . . . . . 45 3 . . . . Jamming 20 | . . . . . . . . . . . 20 . . ECM 2 | . . . . . . . . . . . 2 . . Robot Analysis Total 1 | . 1 . . . . . . . . . . . . Derelict Logs Recovered 10 | . . 1 1 . 5 . . 2 . 1 . . . Drone Launches . | . . . . . . . . . . . . . . Drone Recoveries . | . . . . . . . . . . . . . . Exploration | -11 -10 -10 -10 -7 -7 -5 -5 -5 -5 -4 -4 -4 -4 ------------- Run | Yrd Mat Min Sub Rec Scr Fac Upp Upp War Pro Fac Was Fac Turns Passed 27874 | 122 2001 952 4497 2330 9864 994 561 1935 1458 2290 641 61 168 Spaces Moved 12835 | 58 830 575 2214 922 3550 377 435 1288 1016 1037 268 100 165 Core 256 | 5 . . . . . . . . . . 57 100 94 Treads 7645 | 53 830 575 1748 440 2570 163 . . 14 1037 211 . 4 Legs . | . . . . . . . . . . . . . . Wheels 4920 | . . . 466 482 980 214 435 1288 1002 . . . 53 Hover 14 | . . . . . . . . . . . . . 14 Flight . | . . . . . . . . . . . . . . Fastest Speed 50 | 50 160 160 130 150 135 100 100 100 100 163 50 50 50 Average Speed 188 | 150 160 160 170 227 264 163 113 116 119 208 164 55 66 Slowest Speed 1500 | 160 160 160 240 312 312 245 125 200 249 249 1500 100 145 Overloaded Moves . | . . . . . . . . . . . . . . Propulsion Burnouts . | . . . . . . . . . . . . . . Robots Hopped . | . . . . . . . . . . . . . . Potential Cave-ins . | . . . . . . . . . . . . . . Cave-ins Triggered . | . . . . . . . . . . . . . . Exploration Rate (%) 65 | 5 99 100 97 96 94 11 53 98 92 90 10 69 5 Regions Visited 13 Branch Regions 8 Pre-discovered Areas 9 | . 3 . . 4 1 . . . . 1 . . . Known Exits Taken 4 | . . 1 1 . . 1 . 1 . . . . . Unknown Exits Taken 7 | 1 1 . . 1 1 . 1 . 1 1 . . . Scrap Searched 22 | . . 1 5 . 5 . 3 5 . 3 . . . Spaces Dug 29 | . 4 . 1 . . 9 . 11 4 . . . . Terrain Destroyed 232 | . 8 3 28 3 . 57 11 41 8 15 58 . . Melee 11 | . . . . . . 7 . . 4 . . . . Projectile 123 | . 8 . 2 3 . 21 11 41 4 15 18 . . AOE 98 | . . 3 26 . . 29 . . . . 40 . . Terrain Rammed . | . . . . . . . . . . . . . . Walls Destroyed . | . . . . . . . . . . . . . . Machines Disabled . | . . . . . . . . . . . . . . Actions | -11 -10 -10 -10 -7 -7 -5 -5 -5 -5 -4 -4 -4 -4 --------- Run | Yrd Mat Min Sub Rec Scr Fac Upp Upp War Pro Fac Was Fac Total 15788 | 75 1389 591 2725 1129 4044 587 498 1678 1217 1131 407 104 213 Wait 1903 | . 468 . 338 134 395 35 16 308 98 49 50 1 11 Move 12823 | 57 829 574 2213 921 3549 376 434 1287 1015 1036 268 99 165 Hop . | . . . . . . . . . . . . . . Pick Up 181 | 4 17 2 30 7 44 22 11 14 12 3 8 1 6 Fast Attach 74 | 6 . . 5 2 4 13 1 10 15 3 7 2 6 Attach 69 | . 1 . 9 . 1 24 7 5 1 . 15 1 5 Detach 18 | . . . . 1 1 3 3 3 1 . 4 . 2 Swap 115 | . 14 5 21 3 4 22 5 7 15 10 8 . 1 Drop 173 | . 7 2 18 5 44 10 16 17 30 6 17 . 1 Fire 333 | 8 53 8 91 17 . 71 5 23 15 12 30 . . Melee 28 | . . . . . 2 11 . . 15 . . . . Ram . | . . . . . . . . . . . . . . Kick . | . . . . . . . . . . . . . . Crush 16 | . . . . . . . . . . . . . 16 Escape Stasis . | . . . . . . . . . . . . . . Rewire 55 | . . . . 39 . . . 4 . 12 . . . Trap . | . . . . . . . . . . . . . . Miscellaneous . | . . . . . . . . . . . . . . Route ------- -11/Scrapyard -10/Materials (discovered 5 exits: *Mat x3 / [*Min] / *Sub) -10/Mines (discovered 3 exits: *Mat x2 / *Sub) -10/Subcaves (discovered 3 exits: *Mat x2 / *Rec) -7/Recycling -7/Scraptown (discovered 2 exits: *Fac x2) -5/Factory -5/Upper Caves -5/Upper Caves (discovered 2 exits: *Fac / *War) -5/Warlord -4/Proximity Caves -4/Factory (discovered 3 exits: Upp x2 / Arm) -4/Waste -4/Factory History --------- Turn | Location | Event 5 | -11/Scrapyard | Discovered new exit (range 14) 123 | -11/Scrapyard | Entered Materials 304 | -10/Materials | Build established: Mutant 350 | -10/Materials | Discovered new exit (range 3) 841 | -10/Materials | Discovered new exit (range 16) 1083 | -10/Materials | Discovered new exit (range 15) 1160 | -10/Materials | Learned location of 2 exits from Mines 1259 | -10/Materials | Discovered new exit (range 16) 1291 | -10/Materials | Learned 4 Recycling zone layouts 1327 | -10/Materials | Learned Storage interactive machine intel 1353 | -10/Materials | Learned Materials stockpile data 1391 | -10/Materials | Learned location of 2 exits from Subcaves 1898 | -10/Materials | Discovered new exit (range 7) 2124 | -10/Materials | Entered Mines 2125 | -10/Mines | Identified exit to Materials 2126 | -10/Mines | Identified exit to Subcaves 2127 | -10/Mines | Met a Derelict bent on vengeance 2247 | -10/Mines | Learned Materials stockpile data 2493 | -10/Mines | Received a Rocket Launcher from a helpful Derelict 3076 | -10/Mines | Entered Subcaves 3077 | -10/Subcaves | Approached by a straggling Scientist 3077 | -10/Subcaves | Identified exit to Materials 3077 | -10/Subcaves | Identified exit to Recycling 3397 | -10/Subcaves | Shifting Twisted Machinery released Barrage Gun 3407 | -10/Subcaves | Shifting Twisted Machinery released Enh. Flamer 3637 | -10/Subcaves | Core integrity fell below 50% 3737 | -10/Subcaves | Discovered exit to Materials (range 12) 3799 | -10/Subcaves | Ambushed by Subdweller buried in earth 4154 | -10/Subcaves | Ambushed by Subdweller buried in earth 4295 | -10/Subcaves | Visited triangular shrine 4305 | -10/Subcaves | Found Prototype Device 4306 | -10/Subcaves | Identified V3-11A's Pendant 4311 | -10/Subcaves | Befriended Subdweller 4849 | -10/Subcaves | Core integrity fell below 20% 5102 | -10/Subcaves | Approached by friendly Subdweller 5206 | -10/Subcaves | Befriended Subdweller 5226 | -10/Subcaves | Befriended Subdweller 5723 | -10/Subcaves | Disturbed a concealed Subdweller 5956 | -10/Subcaves | Befriended Subdweller 5956 | -10/Subcaves | Befriended Subdweller 6504 | -10/Subcaves | Shifting Twisted Machinery released Flamer 6517 | -10/Subcaves | Shifting Twisted Machinery released Sub. Machine Gun 6685 | -10/Subcaves | Visited 4L-MR0's lab 6707 | -10/Subcaves | Found Tower Shield 6743 | -10/Subcaves | Attached Tower Shield, gained temporary slots: Power, Propulsion x2, Utility x2, Weapon x2 6813 | -10/Subcaves | Shifting Twisted Machinery released Sub. Optics 6818 | -10/Subcaves | Shifting Twisted Machinery released Barrage Gun 6824 | -10/Subcaves | A swath of the cavern ceiling suddenly collapsed 6977 | -10/Subcaves | Visited Clippyterm 6981 | -10/Subcaves | Learned Factory emergency access door positions 7162 | -10/Subcaves | Build established: Scavenger-Mutant 7356 | -10/Subcaves | Befriended Subdweller 7573 | -10/Subcaves | Entered Recycling 7573 | -7/Recycling | Accompanied by 2 allies 7574 | -7/Recycling | Met a Zionite searching for Scraptown 7874 | -7/Recycling | Lost 3 allies 7963 | -7/Recycling | Lost 3 allies 8572 | -7/Recycling | Scanned before Scraplab entrance 8619 | -7/Recycling | Entered Scraplab 8717 | -7/Recycling | Build established: Commander-Mutant 9877 | -7/Recycling | Discovered new exit (range 2) 9903 | -7/Recycling | Entered Scraptown 9903 | -7/Scraptown | Accompanied by 4 allies 9985 | -7/Scraptown | Heard Great Nut preacher, LISTEN AND RECITE! 10175 | -7/Scraptown | Scanned Subdweller tech in exchange for log data 10181 | -7/Scraptown | Learned Factory terminal intel 10184 | -7/Scraptown | Learned 12 Research zone layouts 10187 | -7/Scraptown | Learned Factory garrison access intel 10194 | -7/Scraptown | Learned Factory security intel 10637 | -7/Scraptown | Delivered V3-11A's Pendant to T0-NE2 in exchange for information 11201 | -7/Scraptown | Visited Cyclists 11320 | -7/Scraptown | Visited UFD Registry 11320 | -7/Scraptown | Registered with UFD as "Toolbank" 11367 | -7/Scraptown | Visited The Evicted 11457 | -7/Scraptown | Visited Symbiants 11520 | -7/Scraptown | Visited Artisan Demo Area 11679 | -7/Scraptown | Visited Red Mages 11841 | -7/Scraptown | Visited Spacefarers 12128 | -7/Scraptown | Visited Modified Component R&D 12347 | -7/Scraptown | Visited Science Testing Area 12415 | -7/Scraptown | Visited Abandonware Association 12446 | -7/Scraptown | Learned abandonware demo "OVRCLOCK.EXE" 12456 | -7/Scraptown | Learned abandonware demo "KABOOM.EXE" 12456 | -7/Scraptown | Learned abandonware demo "SHUTEYE.EXE" 12568 | -7/Scraptown | Visited Observation Area 12721 | -7/Scraptown | Visited Scrap Suit Storage 12815 | -7/Scraptown | Visited Curators Association 12889 | -7/Scraptown | Visited Science Guys 12996 | -7/Scraptown | Visited Botcube Research 13039 | -7/Scraptown | Visited LU-1G1's Boring Crew 13451 | -7/Scraptown | Delivered Scrap Shield to a Scientist 14069 | -7/Scraptown | Entered Cyclist Reading Room 14414 | -7/Scraptown | Discovered new exit (range 9) 15371 | -7/Scraptown | Build established: Scavenger-Mutant 16540 | -7/Scraptown | Found Scrap Suit 16959 | -7/Scraptown | Found Botcube 17594 | -7/Scraptown | Discovered new exit (range 5) 18396 | -7/Scraptown | Found Scrap Suit 18463 | -7/Scraptown | Botcube activated 18479 | -7/Scraptown | Botcube completed mutation into treaded form, armed with 1 gun, 1 cannon. 18765 | -7/Scraptown | Build established: Commander-Mutant 19691 | -7/Scraptown | Met Optimus 19691 | -7/Scraptown | Accepted into 0bPrime 19767 | -7/Scraptown | Entered Factory 19767 | -5/Factory | Accompanied by 4 allies 19767 | -5/Factory | Evolved 10 slots: Propulsion x2, Utility x7, Weapon x1 19770 | -5/Factory | Loaded intel: 26 terminal locations 19771 | -5/Factory | Loaded intel: 4 garrison access locations 19834 | -5/Factory | Discovered new exit (range 10) 20162 | -5/Factory | Loaded intel: 8 recycling unit locations 20301 | -5/Factory | Destroyed 13 combat bots 20389 | -5/Factory | Lost 8 parts (4n3u1w) 20454 | -5/Factory | Lost 3 parts (1n2w) 20667 | -5/Factory | First assault squad dispatched 20760 | -5/Factory | Identified exit to Upper Caves 20761 | -5/Factory | Entered Upper Caves 20762 | -5/Upper Caves | Encountered a Warlord checkpoint 20763 | -5/Upper Caves | UFD Scientist delivered a prototype 20770 | -5/Upper Caves | Found Prototype Protection 20879 | -5/Upper Caves | Identified Enh. Scrap Shield 21125 | -5/Upper Caves | Discovered new exit (range 7) 21157 | -5/Upper Caves | Attracted the attention of an 0b10 checkpoint 21196 | -5/Upper Caves | Build established: Scavenger-Gunner 21322 | -5/Upper Caves | Entered another Upper Caves area 21395 | -5/Upper Caves | Identified exit to Warlord 21479 | -5/Upper Caves | Prototype Device suddenly appears! 21484 | -5/Upper Caves | Found Prototype Device 21484 | -5/Upper Caves | Identified Amulet of Y3-NDR 21509 | -5/Upper Caves | Joined by bewildered Wizard 21514 | -5/Upper Caves | Joined by bewildered Wizard 21699 | -5/Upper Caves | Discovered new exit (range 9) 21725 | -5/Upper Caves | Encountered a Warlord checkpoint 21779 | -5/Upper Caves | Joined by bewildered Wizard 21780 | -5/Upper Caves | Joined by bewildered Wizard 21788 | -5/Upper Caves | Joined by bewildered Wizard 21788 | -5/Upper Caves | Joined by bewildered Wizard 21820 | -5/Upper Caves | Lost 3 allies 21888 | -5/Upper Caves | Joined by bewildered Wizard 22077 | -5/Upper Caves | Lost 6 allies 22142 | -5/Upper Caves | Joined by bewildered Wizard 22409 | -5/Upper Caves | Entered a destroyed Warlord outpost 22936 | -5/Upper Caves | Learned Factory trap positions 23013 | -5/Upper Caves | Attracted the attention of an 0b10 checkpoint 23138 | -5/Upper Caves | Attacked by a delusional Derelict stockpiling parts 23257 | -5/Upper Caves | Entered Warlord 23299 | -5/Warlord | System corruption cleaned by Quarantine Array 23383 | -5/Warlord | Found Prototype Device 23383 | -5/Warlord | Identified Minesniffer Drone Bay 23391 | -5/Warlord | Found Minesniffer Drone Bay 23688 | -5/Warlord | Build established: Scavenger-Mutant 23832 | -5/Warlord | Warlord's base attacked by MAIN.C 23875 | -5/Warlord | Found Prototype Energy Gun 23875 | -5/Warlord | Identified Vortex Rifle 23880 | -5/Warlord | Found Vortex Rifle 23953 | -5/Warlord | Found Prototype Device 23953 | -5/Warlord | Identified Exp. Focal Shield 23962 | -5/Warlord | Found Prototype Device 23962 | -5/Warlord | Identified Exp. Cloaking Device 23972 | -5/Warlord | Found Prototype Processor 23972 | -5/Warlord | Identified Exp. Armor Integrity Analyzer 23996 | -5/Warlord | Found Prototype Reactor 24087 | -5/Warlord | Rebuked by Warlord 24182 | -5/Warlord | Warlord forces counterattacked 24244 | -5/Warlord | Spotted Striker 24250 | -5/Warlord | Spotted Striker 24278 | -5/Warlord | Build established: Commander-Gunner 24326 | -5/Warlord | Lost 7 allies 24328 | -5/Warlord | Spotted Striker 24333 | -5/Warlord | Spotted Striker 24352 | -5/Warlord | Destroyed Striker 24380 | -5/Warlord | Lost 9 allies 24487 | -5/Warlord | Lost 10 allies 24495 | -5/Warlord | Spotted B-75 Beast 24507 | -5/Warlord | Warlord base infiltrated, sounded retreat 24614 | -5/Warlord | Build established: Scavenger-Gunner 24628 | -5/Warlord | Discovered new exit (range 15) 24642 | -5/Warlord | Spotted Striker 24704 | -5/Warlord | Lost 7 allies 24715 | -5/Warlord | Entered Proximity Caves 24715 | -4/Proximity Caves | Accompanied by 1 ally 25267 | -4/Proximity Caves | Joined by bewildered Wizard 25268 | -4/Proximity Caves | Joined by bewildered Wizard 25269 | -4/Proximity Caves | Joined by bewildered Wizard 25314 | -4/Proximity Caves | Joined by bewildered Wizard 25546 | -4/Proximity Caves | Attracted the attention of an 0b10 checkpoint 25604 | -4/Proximity Caves | Attracted the attention of an 0b10 outpost 25632 | -4/Proximity Caves | Joined by bewildered Wizard 26056 | -4/Proximity Caves | Core integrity fell below 50% 26090 | -4/Proximity Caves | Spotted B-86 Titan 26138 | -4/Proximity Caves | Lost 3 allies 26152 | -4/Proximity Caves | Joined by bewildered Wizard 26317 | -4/Proximity Caves | Discovered new exit (range 8) 27005 | -4/Proximity Caves | Entered Factory 27005 | -4/Factory | Accompanied by 4 allies 27005 | -4/Factory | Evolved 2 slots: Power x1, Propulsion x1 27006 | -4/Factory | Loaded intel: 109 trap records 27006 | -4/Factory | Identified Vortex Chain Reactor 27025 | -4/Factory | Identified exit to Upper Caves 27025 | -4/Factory | Identified exit to Armory 27025 | -4/Factory | Central database locked down 27280 | -4/Factory | Garrison activated, responded to threat 27307 | -4/Factory | Fabricated Arm. Medium Treads? 27319 | -4/Factory | Lost 5 allies 27395 | -4/Factory | Lost 4 parts (2n1u1w) 27588 | -4/Factory | Core integrity fell below 50% 27594 | -4/Factory | Core integrity fell below 20% 27627 | -4/Factory | Lost 12 parts (2n7u3w) 27646 | -4/Factory | Manually triggered Chute Trap 27646 | -4/Factory | Sucked down chute 27646 | -4/Factory | Entered Waste 27651 | -4/Waste | Spotted C-40 Crusher 27654 | -4/Waste | Spotted C-40 Crusher 27661 | -4/Waste | EMP discharged 27674 | -4/Waste | Spotted C-40 Crusher 27681 | -4/Waste | Crushed by Compactor (1 part destroyed) 27689 | -4/Waste | Spotted C-40 Crusher 27690 | -4/Waste | Spotted C-40 Crusher 27691 | -4/Waste | Spotted C-40 Crusher 27696 | -4/Waste | Crushed by Compactor (1 part destroyed) 27696 | -4/Waste | Crushed by Compactor (0 parts destroyed, 1 dropped) 27702 | -4/Waste | Discovered new exit (range 11) 27707 | -4/Waste | Entered Factory 27727 | -4/Factory | Lost 3 parts (2n1w) 27875 | -4/Factory | Destroyed by H-71 Marshal with Heavy Mass Driver Last Messages --------------- 27745_ Acquired Unknown Processor. 27745_ Identified Terrain Scan Processor. 27756_ Discarded Terrain Scan Processor. 27772_ Acquired Adv. Medium Treads. 27775_ Acquired Imp. Antigrav System. 27780_ Acquired Imp. Force Field. 27786_ ALERT: All DSF locations entering lockdown mode. 27786_ Acquired Adv. System Shield. 27788_ Acquired Dynamic Insulation System. 27789_ Adv. Sensor Array destroyed. 27791_ Acquired 8 matter. 27810_ ALERT: Suspicious intruders detected, dispatching Cutter reinforcements to area. 27817_ Penetrated by Slug. 27825_ Acquired Centrium Wheel. 27834_ Slammed into S-27 Virus. 27862_ Broken Adv. Heavy Treads destroyed. 27867_ Acquired Prototype Storage. 27867_ Identified Imp. Energy Well. 27875_ Penetrated by Slug. 27875_ Imp. Antigrav System destroyed. Map ----- +----------------------------------------------------+ | ??????????????????????????????? | | ??????????????????????????????? | | ??????????????????????????????? | | ??????????????????????????????? | | ??????????????????????????????? | | ??????????????????????????????? | | ??????????????????????????????? | | ??????????????????????????????? | | ??????????????????????????????? | | ??????????????????????????????? | | ??????????????????????????????? | | ??????????????????????????????? | | ??????????????????????????????? | | ??????????????????????????????? | | ??????????????????????????????? | | ??????????????????????????????? | | ??????????????????????????????? | | ??????????????????????????????? | | ??????????????????????????????? | | ?????? ????????????############ | | ????? ???????????# # | | ????? ??????????# # | | ???? ?????????# """ """ !# | | ???? ????????# """ """ # | | ???? ###+#### """ """s # | | ??? # @ % # | | ??? ! %; """ # | | ??# H + """ # | | ??# ; """ # | | ??# # """ # | | ??# ###### # """ """ # | | ???? ??????# # "S """ # | | ????# ##?#?#?# # """ """ # | | ????# # ? ? ?# # "" /# | | ???? # " " ## # # | | ????T # " " ## ######??## # | | ????# # " " ## #?????????## | | ????# # " " ## #??????????? | | #+### # " " ## #??????????? | | # " " ## #??????????? | | ^ # " " ## #??????????? | | """ # " " ##/############ | | """ !!! %# " " ## """" # | | """ !!! # ## ""S"" # | | ! # ## "" "" ! # | | ###+#### # | | !! # # | | !! # """"""""" # | | !! + # | | # """"""""" # | +----------------------------------------------------+ Best States ------------- Heat Dissipation 78 Coolant Potential 120 Energy Generation 37 Energy Capacity 550 Matter Stores 300 Matter Capacity 300 Sight Range 16 Robot Scan Range 16 Terrain Scan Density 285 Jamming Range 14 Cloak Strength 3 Additional Mass Support 16 Base Temperature (-) 150 Corruption Block 20 Armor Coverage 2600 Resistance: KI 30 Core Shielding 20 Evasion (%) 51 Targeting Accuracy 8 Core Analysis 6 Armor Integrity Analysis 50 Recoil Reduction 6 Kinecelleration 40 Offensive Hacking 42 Defensive Hacking 24 Item Schematics ----------------- Huge Storage Unit | -10/Materials | Hacked Hcp. Storage Unit | -10/Materials | Hacked Com. Wheel | -10/Materials | Hacked Assault Rifle | -10/Materials | Hacked CPS Tube | -5/Factory | Scanalyzed Matter Filter | -5/Factory | Extracted Graphene Brace | -4/Factory | Hacked Arm. Medium Treads | -4/Factory | Hacked Adv. System Restoration Module | -4/Factory | Hacked Hvy. Siege Treads | -4/Factory | Hacked Robot Schematics ------------------ G-50 Soldier | -4/Factory | Hacked Fabricated ------------ Arm. Medium Treads | x2 | -4/Factory Repaired ---------- Nothing Alien Tech Used ----------------- None Achievements -------------- None Challenges ------------ None Game ------ Seed LinkedGravitonBallwheel Manual? 0 Play Time 02:36:51 Cumulative 304.2 hours Start 2025.06.14 @ 19:25:31 End 2025.06.17 @ 21:09:27 Sessions 3 Manual Loads 0 Difficulty Rogue Special Mode None Game No. 154 Rogue 154 Adventurer 0 Explorer 0 Win Type - Total 1 Types 0/0/0/0/1/0/0/0/0/0 Lore% 78 Gallery% 76 Achievement% 65 Wizard Run 0 Options --------- Layout 0 ASCII 0 Keyboard 0 Movement Mouse Keybinds 0 Fullscreen 1 Font 24/Smallcaps Map View 183x50 Zoom Use 0% Tactical HUD 1 Map Filters NONE Filters NONE Steam 0 RUN: 62a0ee37-0350-41e0-968e-96522ddc53ea